[Event "Titled Tuesday Blitz August 1 Late 2023"]
[White "Nikolova, Adriana"]
[Black "Winkels, Marcel"]
[WhiteFideId "2908689"]
[BlackFideId "1003887"]
[WhiteElo "2421"]
[BlackElo "2081"]
[Result "1-0"]
[Round "2"]
[TimeControl "180+1"]
[Date "2023.08.01"]
[WhiteClock "0:00:07"]
[BlackClock "0:00:00"]
[Board "187"]

1. d4 {[%clk 0:03:00]}  Nf6 {[%clk 0:02:59]} 2. Bf4 {[%clk 0:03:00]}  g6 {[%clk 0:02:58]} 3. e3 {[%clk 0:03:01]}  Bg7 {[%clk 0:02:57]} 4. h3 {[%clk 0:03:00]}  O-O {[%clk 0:02:56]} 5. Nf3 {[%clk 0:03:00]}  d6 {[%clk 0:02:56]} 6. Bh2 {[%clk 0:02:58]}  c5 {[%clk 0:02:55]} 7. c3 {[%clk 0:02:57]}  Nc6 {[%clk 0:02:54]} 8. Be2 {[%clk 0:02:57]}  Qb6 {[%clk 0:02:50]} 9. Qb3 {[%clk 0:02:50]}  Be6 {[%clk 0:02:49]} 10. Qxb6 {[%clk 0:02:49]}  axb6 {[%clk 0:02:49]} 11. O-O {[%clk 0:02:48]}  Rxa2 {[%clk 0:02:47]} 12. Rxa2 {[%clk 0:02:48]}  Bxa2 {[%clk 0:02:46]} 13. Na3 {[%clk 0:02:48]}  Be6 {[%clk 0:02:43]} 14. Nb5 {[%clk 0:02:39]}  cxd4 {[%clk 0:02:37]} 15. Nfxd4 {[%clk 0:02:36]}  Nxd4 {[%clk 0:02:25]} 16. exd4 {[%clk 0:02:37]}  Ra8 {[%clk 0:02:16]} 17. Re1 {[%clk 0:02:16]}  Ra2 {[%clk 0:02:13]} 18. b4 {[%clk 0:02:16]}  h6 {[%clk 0:02:00]} 19. g4 {[%clk 0:02:15]}  g5 {[%clk 0:01:51]} 20. Nc7 {[%clk 0:02:12]}  Bb3 {[%clk 0:01:42]} 21. Bf3 {[%clk 0:02:07]}  Bf8 {[%clk 0:01:36]} 22. Bg3 {[%clk 0:01:54]}  e6 {[%clk 0:01:32]} 23. Nb5 {[%clk 0:01:46]}  d5 {[%clk 0:01:30]} 24. Bc7 {[%clk 0:01:35]}  Bc4 {[%clk 0:01:26]} 25. Nd6 {[%clk 0:01:29]}  b5 {[%clk 0:01:11]} 26. Nxb7 {[%clk 0:01:01]}  Ra7 {[%clk 0:01:02]} 27. Be5 {[%clk 0:00:58]}  Nxg4 {[%clk 0:00:55]} 28. Bxg4 {[%clk 0:00:55]}  Rxb7 {[%clk 0:00:54]} 29. Ra1 {[%clk 0:00:56]}  Bg7 {[%clk 0:00:50]} 30. Ra8+ {[%clk 0:00:54]}  Kh7 {[%clk 0:00:49]} 31. Kg2 {[%clk 0:00:40]}  Bxe5 {[%clk 0:00:47]} 32. dxe5 {[%clk 0:00:41]}  Rd7 {[%clk 0:00:46]} 33. Bf3 {[%clk 0:00:39]}  d4 {[%clk 0:00:43]} 34. Bc6 {[%clk 0:00:25]}  Rc7 {[%clk 0:00:42]} 35. Be4+ {[%clk 0:00:25]}  Kg7 {[%clk 0:00:41]} 36. cxd4 {[%clk 0:00:26]}  Rd7 {[%clk 0:00:35]} 37. Bc6 {[%clk 0:00:22]}  Rxd4 {[%clk 0:00:34]} 38. Ra7 {[%clk 0:00:21]}  Rf4 {[%clk 0:00:29]} 39. Rb7 {[%clk 0:00:20]}  Rf5 {[%clk 0:00:27]} 40. Kg3 {[%clk 0:00:17]}  Rxe5 {[%clk 0:00:26]} 41. Be8 {[%clk 0:00:17]}  Rf5 {[%clk 0:00:25]} 42. Bd7 {[%clk 0:00:14]}  Bd5 {[%clk 0:00:25]} 43. Rb6 {[%clk 0:00:13]}  Rf3+ {[%clk 0:00:25]} 44. Kg2 {[%clk 0:00:08]}  Rd3+ {[%clk 0:00:21]} 45. Kh2 {[%clk 0:00:04]}  Rd2 {[%clk 0:00:20]} 46. Kg3 {[%clk 0:00:04]}  Rd3+ {[%clk 0:00:19]} 47. Kh2 {[%clk 0:00:05]}  h5 {[%clk 0:00:18]} 48. Be8 {[%clk 0:00:05]}  Re3 {[%clk 0:00:17]} 49. fxe3 {[%clk 0:00:04]}  e5 {[%clk 0:00:15]} 50. Rd6 {[%clk 0:00:03]}  Be6 {[%clk 0:00:14]} 51. Bxb5 {[%clk 0:00:04]}  g4 {[%clk 0:00:13]} 52. hxg4 {[%clk 0:00:04]}  hxg4 {[%clk 0:00:13]} 53. Kg3 {[%clk 0:00:05]}  Kf6 {[%clk 0:00:13]} 54. Rd8 {[%clk 0:00:05]}  Ke7 {[%clk 0:00:13]} 55. Rb8 {[%clk 0:00:06]}  Kd6 {[%clk 0:00:13]} 56. Ba6 {[%clk 0:00:06]}  Kc7 {[%clk 0:00:13]} 57. Rb7+ {[%clk 0:00:06]}  Kc6 {[%clk 0:00:13]} 58. b5+ {[%clk 0:00:06]}  Kc5 {[%clk 0:00:12]} 59. Rc7+ {[%clk 0:00:07]}  Kd6 {[%clk 0:00:12]} 60. Rc6+ {[%clk 0:00:07]}  Kd5 {[%clk 0:00:12]} 61. Bc8 {[%clk 0:00:07]}  e4 {[%clk 0:00:09]} 62. Bxe6+ {[%clk 0:00:07]}  fxe6 {[%clk 0:00:09]} 63. Rc8 {[%clk 0:00:06]}  Kd6 {[%clk 0:00:09]} 64. b6 {[%clk 0:00:07]}  Kd7 {[%clk 0:00:09]} 65. b7 {[%clk 0:00:07]}  Kd6 {[%clk 0:00:00]} 66. b8=Q+ {[%clk 0:00:07]} 1-0


[Site "https://www.chess.com"]

[Event "Titled Tuesday Blitz August 1 Late 2023"]
[White "Semenova, Alina"]
[Black "Jorajuria Mendoza, Algol"]
[WhiteFideId "24113875"]
[BlackFideId "5128897"]
[WhiteElo "2080"]
[BlackElo "2421"]
[Result "0-1"]
[Round "2"]
[TimeControl "180+1"]
[Date "2023.08.01"]
[WhiteClock "0:00:03"]
[BlackClock "0:00:52"]
[Board "188"]

1. e4 {[%clk 0:02:58]}  c5 {[%clk 0:02:58]} 2. Nf3 {[%clk 0:02:59]}  Nc6 {[%clk 0:02:59]} 3. d4 {[%clk 0:02:59]}  cxd4 {[%clk 0:02:59]} 4. Nxd4 {[%clk 0:03:00]}  Nf6 {[%clk 0:03:00]} 5. Nc3 {[%clk 0:02:59]}  e5 {[%clk 0:03:00]} 6. Ndb5 {[%clk 0:02:59]}  d6 {[%clk 0:03:01]} 7. Bg5 {[%clk 0:02:59]}  a6 {[%clk 0:03:01]} 8. Na3 {[%clk 0:02:59]}  b5 {[%clk 0:03:01]} 9. Nd5 {[%clk 0:02:59]}  Be7 {[%clk 0:03:02]} 10. Bxf6 {[%clk 0:03:00]}  Bxf6 {[%clk 0:03:02]} 11. c3 {[%clk 0:02:58]}  O-O {[%clk 0:03:02]} 12. h4 {[%clk 0:02:59]}  Be6 {[%clk 0:02:23]} 13. Nc2 {[%clk 0:02:52]}  Bxd5 {[%clk 0:02:12]} 14. Qxd5 {[%clk 0:02:53]}  Ne7 {[%clk 0:02:11]} 15. Qd3 {[%clk 0:02:51]}  d5 {[%clk 0:02:11]} 16. Ne3 {[%clk 0:02:50]}  d4 {[%clk 0:01:46]} 17. Ng4 {[%clk 0:02:40]}  dxc3 {[%clk 0:01:46]} 18. Qg3 {[%clk 0:01:28]}  cxb2 {[%clk 0:01:40]} 19. Nxf6+ {[%clk 0:01:25]}  Kh8 {[%clk 0:01:40]} 20. Rb1 {[%clk 0:01:20]}  Rc8 {[%clk 0:01:35]} 21. Bd3 {[%clk 0:01:07]}  Rc1+ {[%clk 0:01:29]} 22. Ke2 {[%clk 0:01:07]}  Rxh1 {[%clk 0:01:28]} 23. Rxh1 {[%clk 0:01:06]}  gxf6 {[%clk 0:01:25]} 24. Rb1 {[%clk 0:00:53]}  Ng6 {[%clk 0:01:20]} 25. Rxb2 {[%clk 0:00:40]}  Nf4+ {[%clk 0:01:20]} 26. Kd2 {[%clk 0:00:37]}  Qa5+ {[%clk 0:01:15]} 27. Kd1 {[%clk 0:00:32]}  Rd8 {[%clk 0:01:13]} 28. Rd2 {[%clk 0:00:31]}  Qc3 {[%clk 0:01:03]} 29. Qf3 {[%clk 0:00:06]}  Qa1+ {[%clk 0:00:53]} 30. Kc2 {[%clk 0:00:05]}  Rc8+ {[%clk 0:00:52]} 31. Kb3 {[%clk 0:00:03]}  Qc3# {[%clk 0:00:52]} 0-1


[Site "https://www.chess.com"]

[Event "Titled Tuesday Blitz August 1 Late 2023"]
[White "MrLudus"]
[Black "Davidson, Kevin"]
[BlackFideId "2056810"]
[WhiteElo "2055"]
[BlackElo "2420"]
[Result "0-1"]
[Round "2"]
[TimeControl "180+1"]
[Date "2023.08.01"]
[WhiteClock "0:00:40"]
[BlackClock "0:00:15"]
[Board "189"]

1. e4 {[%clk 0:03:00]}  c5 {[%clk 0:02:59]} 2. Nf3 {[%clk 0:02:58]}  d6 {[%clk 0:02:59]} 3. d4 {[%clk 0:02:59]}  cxd4 {[%clk 0:02:59]} 4. Nxd4 {[%clk 0:02:59]}  Nf6 {[%clk 0:03:00]} 5. Nc3 {[%clk 0:03:00]}  a6 {[%clk 0:03:00]} 6. Bd3 {[%clk 0:02:59]}  e5 {[%clk 0:02:59]} 7. Nde2 {[%clk 0:03:00]}  Be7 {[%clk 0:02:59]} 8. O-O {[%clk 0:03:00]}  O-O {[%clk 0:02:59]} 9. Ng3 {[%clk 0:03:01]}  Be6 {[%clk 0:02:58]} 10. Nd5 {[%clk 0:03:02]}  Bxd5 {[%clk 0:02:58]} 11. exd5 {[%clk 0:03:02]}  g6 {[%clk 0:02:57]} 12. c4 {[%clk 0:03:02]}  Nbd7 {[%clk 0:02:56]} 13. Bh6 {[%clk 0:03:03]}  Re8 {[%clk 0:02:56]} 14. Rc1 {[%clk 0:03:02]}  Bf8 {[%clk 0:02:19]} 15. Be3 {[%clk 0:03:02]}  Bg7 {[%clk 0:02:15]} 16. Kh1 {[%clk 0:02:43]}  a5 {[%clk 0:02:06]} 17. b3 {[%clk 0:02:43]}  b6 {[%clk 0:02:06]} 18. f4 {[%clk 0:02:42]}  exf4 {[%clk 0:02:03]} 19. Bxf4 {[%clk 0:02:42]}  Ne5 {[%clk 0:01:58]} 20. Be2 {[%clk 0:02:42]}  Ra7 {[%clk 0:01:16]} 21. Qd2 {[%clk 0:02:40]}  Nfd7 {[%clk 0:00:59]} 22. Bg5 {[%clk 0:02:31]}  f6 {[%clk 0:00:54]} 23. Bh6 {[%clk 0:02:31]}  Nc5 {[%clk 0:00:51]} 24. Bxg7 {[%clk 0:02:30]}  Kxg7 {[%clk 0:00:51]} 25. Rf2 {[%clk 0:02:19]}  f5 {[%clk 0:00:43]} 26. Qd4 {[%clk 0:02:11]}  Kg8 {[%clk 0:00:26]} 27. Rb1 {[%clk 0:02:11]}  Qe7 {[%clk 0:00:20]} 28. h3 {[%clk 0:02:03]}  Nf7 {[%clk 0:00:19]} 29. Rbf1 {[%clk 0:01:29]}  Qe3 {[%clk 0:00:18]} 30. Qh4 {[%clk 0:00:49]}  Qg5 {[%clk 0:00:18]} 31. Qd4 {[%clk 0:00:48]}  Qxg3 {[%clk 0:00:16]} 32. Rf3 {[%clk 0:00:40]}  Qe5 {[%clk 0:00:15]} 0-1


[Site "https://www.chess.com"]

[Event "Titled Tuesday Blitz August 1 Late 2023"]
[White "Dominguez Rincon, Miller Duvan"]
[Black "Kazakov, Mikhail"]
[WhiteFideId "4406583"]
[BlackFideId "14102749"]
[WhiteElo "1986"]
[BlackElo "2414"]
[Result "0-1"]
[Round "2"]
[TimeControl "180+1"]
[Date "2023.08.01"]
[WhiteClock "0:00:00"]
[BlackClock "0:01:09"]
[Board "193"]

1. e4 {[%clk 0:02:49]}  c5 {[%clk 0:02:51]} 2. Nf3 {[%clk 0:02:47]}  d6 {[%clk 0:02:51]} 3. d4 {[%clk 0:02:47]}  cxd4 {[%clk 0:02:52]} 4. Nxd4 {[%clk 0:02:47]}  Nf6 {[%clk 0:02:53]} 5. Nc3 {[%clk 0:02:47]}  a6 {[%clk 0:02:54]} 6. Bc4 {[%clk 0:02:47]}  e6 {[%clk 0:02:53]} 7. Bb3 {[%clk 0:02:46]}  Be7 {[%clk 0:02:53]} 8. g4 {[%clk 0:02:46]}  O-O {[%clk 0:02:49]} 9. g5 {[%clk 0:02:43]}  Nfd7 {[%clk 0:02:48]} 10. Bxe6 {[%clk 0:02:02]}  fxe6 {[%clk 0:02:46]} 11. Nxe6 {[%clk 0:02:02]}  Qa5 {[%clk 0:02:42]} 12. Nxf8 {[%clk 0:02:00]}  Nxf8 {[%clk 0:02:39]} 13. Qd5+ {[%clk 0:01:55]}  Qxd5 {[%clk 0:02:36]} 14. Nxd5 {[%clk 0:01:56]}  Bd8 {[%clk 0:02:36]} 15. Be3 {[%clk 0:01:54]}  Nc6 {[%clk 0:02:30]} 16. O-O-O {[%clk 0:01:52]}  Be6 {[%clk 0:02:29]} 17. f4 {[%clk 0:01:45]}  Bxd5 {[%clk 0:02:26]} 18. Rxd5 {[%clk 0:01:46]}  Bc7 {[%clk 0:02:25]} 19. h4 {[%clk 0:01:16]}  Re8 {[%clk 0:02:24]} 20. Bd2 {[%clk 0:00:56]}  Rxe4 {[%clk 0:02:22]} 21. Re1 {[%clk 0:00:56]}  Rxe1+ {[%clk 0:02:18]} 22. Bxe1 {[%clk 0:00:57]}  Ne6 {[%clk 0:02:11]} 23. Bd2 {[%clk 0:00:51]}  Ne7 {[%clk 0:02:06]} 24. Rd3 {[%clk 0:00:46]}  Nf5 {[%clk 0:02:06]} 25. b4 {[%clk 0:00:26]}  Nxh4 {[%clk 0:02:02]} 26. a4 {[%clk 0:00:19]}  Nf5 {[%clk 0:01:49]} 27. c4 {[%clk 0:00:18]}  Kf7 {[%clk 0:01:49]} 28. c5 {[%clk 0:00:18]}  dxc5 {[%clk 0:01:44]} 29. bxc5 {[%clk 0:00:19]}  Ke7 {[%clk 0:01:31]} 30. Rd5 {[%clk 0:00:08]}  g6 {[%clk 0:01:29]} 31. c6 {[%clk 0:00:07]}  bxc6 {[%clk 0:01:27]} 32. Rd3 {[%clk 0:00:07]}  Bxf4 {[%clk 0:01:25]} 33. Rh3 {[%clk 0:00:04]}  Bxd2+ {[%clk 0:01:22]} 34. Kxd2 {[%clk 0:00:05]}  Nxg5 {[%clk 0:01:23]} 35. Rb3 {[%clk 0:00:04]}  Ne4+ {[%clk 0:01:14]} 36. Kc1 {[%clk 0:00:02]}  Nc5 {[%clk 0:01:13]} 37. Rb6 {[%clk 0:00:01]}  Kd6 {[%clk 0:01:13]} 38. Rb8 {[%clk 0:00:01]}  Nxa4 {[%clk 0:01:12]} 39. Rh8 {[%clk 0:00:01]}  h6 {[%clk 0:01:10]} 40. Rg8 {[%clk 0:00:00]}  g5 {[%clk 0:01:09]} 0-1


[Site "https://www.chess.com"]

[Event "Titled Tuesday Blitz August 1 Late 2023"]
[White "Bakalchuk, Johnatan"]
[Black "Carlsen, Magnus"]
[WhiteFideId "2810301"]
[BlackFideId "1503014"]
[WhiteElo "2742"]
[BlackElo "3255"]
[Result "0-1"]
[Round "3"]
[TimeControl "180+1"]
[Date "2023.08.01"]
[WhiteClock "0:00:23"]
[BlackClock "0:00:59"]
[Board "1"]

1. e4 {[%clk 0:03:00]}  c5 {[%clk 0:02:55]} 2. Nf3 {[%clk 0:03:00]}  b6 {[%clk 0:02:56]} 3. d4 {[%clk 0:03:01]}  cxd4 {[%clk 0:02:57]} 4. Nxd4 {[%clk 0:03:01]}  Bb7 {[%clk 0:02:57]} 5. Nc3 {[%clk 0:03:02]}  a6 {[%clk 0:02:58]} 6. g3 {[%clk 0:03:01]}  g6 {[%clk 0:02:55]} 7. Bg2 {[%clk 0:03:00]}  Bg7 {[%clk 0:02:56]} 8. O-O {[%clk 0:03:01]}  Nc6 {[%clk 0:02:54]} 9. Be3 {[%clk 0:03:00]}  Ne5 {[%clk 0:02:48]} 10. b3 {[%clk 0:02:54]}  Nf6 {[%clk 0:02:42]} 11. h3 {[%clk 0:02:52]}  Rc8 {[%clk 0:02:40]} 12. Nd5 {[%clk 0:02:48]}  O-O {[%clk 0:02:37]} 13. f4 {[%clk 0:02:45]}  Nc6 {[%clk 0:02:37]} 14. Nxc6 {[%clk 0:02:39]}  Rxc6 {[%clk 0:02:33]} 15. Nxf6+ {[%clk 0:01:39]}  exf6 {[%clk 0:02:16]} 16. Qd3 {[%clk 0:01:39]}  b5 {[%clk 0:02:14]} 17. Rad1 {[%clk 0:01:38]}  Qc8 {[%clk 0:02:14]} 18. Rf2 {[%clk 0:01:35]}  Rc3 {[%clk 0:02:10]} 19. Qe2 {[%clk 0:01:28]}  Re8 {[%clk 0:02:08]} 20. Bd4 {[%clk 0:00:56]}  Rxg3 {[%clk 0:02:07]} 21. Kh2 {[%clk 0:00:56]}  Rxg2+ {[%clk 0:02:08]} 22. Rxg2 {[%clk 0:00:57]}  Rxe4 {[%clk 0:01:55]} 23. Qd2 {[%clk 0:00:54]}  Qc6 {[%clk 0:01:50]} 24. Rf2 {[%clk 0:00:52]}  Bh6 {[%clk 0:01:49]} 25. Be3 {[%clk 0:00:50]}  d5 {[%clk 0:01:34]} 26. Qd3 {[%clk 0:00:49]}  d4 {[%clk 0:01:31]} 27. Bd2 {[%clk 0:00:43]}  Rxf4 {[%clk 0:01:26]} 28. Qg3 {[%clk 0:00:34]}  Rxf2+ {[%clk 0:01:22]} 29. Qxf2 {[%clk 0:00:35]}  Qxc2 {[%clk 0:01:15]} 30. Qxd4 {[%clk 0:00:34]}  Qc7+ {[%clk 0:01:00]} 31. Kg1 {[%clk 0:00:27]}  Qg3+ {[%clk 0:01:00]} 32. Kf1 {[%clk 0:00:27]}  Bg2+ {[%clk 0:00:59]} 33. Ke2 {[%clk 0:00:23]}  Qf3+ {[%clk 0:00:59]} 0-1


[Site "https://www.chess.com"]

[Event "Titled Tuesday Blitz August 1 Late 2023"]
[White "Sargsyan, Shant"]
[Black "Korchmar, Vasiliy"]
[WhiteFideId "13306766"]
[BlackFideId "24131750"]
[WhiteElo "2979"]
[BlackElo "2668"]
[Result "1-0"]
[Round "3"]
[TimeControl "180+1"]
[Date "2023.08.01"]
[WhiteClock "0:00:21"]
[BlackClock "0:00:00"]
[Board "9"]

1. c4 {[%clk 0:03:00]}  c6 {[%clk 0:02:59]} 2. g3 {[%clk 0:03:01]}  d5 {[%clk 0:02:59]} 3. Nf3 {[%clk 0:03:02]}  g6 {[%clk 0:02:59]} 4. Qa4 {[%clk 0:02:59]}  dxc4 {[%clk 0:02:52]} 5. Qxc4 {[%clk 0:02:58]}  Bg7 {[%clk 0:02:52]} 6. Bg2 {[%clk 0:02:58]}  Nh6 {[%clk 0:02:52]} 7. O-O {[%clk 0:02:53]}  Nf5 {[%clk 0:02:52]} 8. Rd1 {[%clk 0:02:50]}  O-O {[%clk 0:02:52]} 9. d4 {[%clk 0:02:51]}  a5 {[%clk 0:02:48]} 10. Nc3 {[%clk 0:02:49]}  a4 {[%clk 0:02:44]} 11. e4 {[%clk 0:02:49]}  Nd6 {[%clk 0:02:40]} 12. Qe2 {[%clk 0:02:48]}  Qa5 {[%clk 0:02:22]} 13. e5 {[%clk 0:02:39]}  Nf5 {[%clk 0:02:15]} 14. g4 {[%clk 0:02:38]}  Nh6 {[%clk 0:02:13]} 15. h3 {[%clk 0:02:39]}  a3 {[%clk 0:02:04]} 16. d5 {[%clk 0:02:32]}  axb2 {[%clk 0:01:52]} 17. Bxb2 {[%clk 0:02:33]}  cxd5 {[%clk 0:01:47]} 18. Nxd5 {[%clk 0:02:23]}  Nc6 {[%clk 0:01:47]} 19. Nd4 {[%clk 0:02:17]}  Nxe5 {[%clk 0:01:31]} 20. Nb3 {[%clk 0:02:10]}  Qa6 {[%clk 0:01:10]} 21. Nxe7+ {[%clk 0:02:06]}  Kh8 {[%clk 0:01:09]} 22. Qxa6 {[%clk 0:02:03]}  Rxa6 {[%clk 0:01:08]} 23. Nxc8 {[%clk 0:02:03]}  Rxc8 {[%clk 0:01:08]} 24. Bxb7 {[%clk 0:01:33]}  Nf3+ {[%clk 0:01:07]} 25. Kh1 {[%clk 0:01:33]}  Bxb2 {[%clk 0:01:08]} 26. Bxc8 {[%clk 0:01:30]}  Ra7 {[%clk 0:00:52]} 27. Rab1 {[%clk 0:01:28]}  Rxa2 {[%clk 0:00:52]} 28. Bb7 {[%clk 0:01:27]}  Ng5 {[%clk 0:00:47]} 29. Rd2 {[%clk 0:01:18]}  Ra7 {[%clk 0:00:43]} 30. Rdxb2 {[%clk 0:01:15]}  Rxb7 {[%clk 0:00:43]} 31. Kg2 {[%clk 0:01:16]}  f5 {[%clk 0:00:38]} 32. h4 {[%clk 0:01:04]}  Ne6 {[%clk 0:00:37]} 33. g5 {[%clk 0:01:05]}  Ng4 {[%clk 0:00:37]} 34. Na5 {[%clk 0:01:00]}  Nf4+ {[%clk 0:00:26]} 35. Kf3 {[%clk 0:00:36]}  Ne5+ {[%clk 0:00:19]} 36. Kg3 {[%clk 0:00:33]}  Nh5+ {[%clk 0:00:09]} 37. Kh2 {[%clk 0:00:24]}  Nf3+ {[%clk 0:00:08]} 38. Kh3 {[%clk 0:00:20]}  Rxb2 {[%clk 0:00:00]} 39. Rxb2 {[%clk 0:00:21]} 1-0


[Site "https://www.chess.com"]

[Event "Titled Tuesday Blitz August 1 Late 2023"]
[White "Matlakov, Maxim"]
[Black "Haydon, David L"]
[WhiteFideId "4168003"]
[BlackFideId "415405"]
[WhiteElo "2966"]
[BlackElo "2659"]
[Result "1-0"]
[Round "3"]
[TimeControl "180+1"]
[Date "2023.08.01"]
[WhiteClock "0:00:11"]
[BlackClock "0:00:05"]
[Board "10"]

1. d4 {[%clk 0:03:00]}  c6 {[%clk 0:02:57]} 2. c4 {[%clk 0:02:58]}  d5 {[%clk 0:02:57]} 3. Nf3 {[%clk 0:02:58]}  Nf6 {[%clk 0:02:57]} 4. g3 {[%clk 0:02:56]}  e6 {[%clk 0:02:56]} 5. Bg2 {[%clk 0:02:57]}  Bd6 {[%clk 0:02:56]} 6. O-O {[%clk 0:02:57]}  O-O {[%clk 0:02:56]} 7. Qc2 {[%clk 0:02:57]}  Nbd7 {[%clk 0:02:56]} 8. Nbd2 {[%clk 0:02:58]}  Qe7 {[%clk 0:02:54]} 9. e4 {[%clk 0:02:56]}  dxe4 {[%clk 0:02:54]} 10. Nxe4 {[%clk 0:02:57]}  Nxe4 {[%clk 0:02:54]} 11. Qxe4 {[%clk 0:02:57]}  e5 {[%clk 0:02:53]} 12. c5 {[%clk 0:02:26]}  Bc7 {[%clk 0:02:49]} 13. Re1 {[%clk 0:02:06]}  f5 {[%clk 0:02:46]} 14. Qc2 {[%clk 0:02:05]}  e4 {[%clk 0:02:44]} 15. b4 {[%clk 0:01:59]}  Nf6 {[%clk 0:02:42]} 16. Rb1 {[%clk 0:01:56]}  Be6 {[%clk 0:02:33]} 17. Ne5 {[%clk 0:01:56]}  Rad8 {[%clk 0:02:30]} 18. Bb2 {[%clk 0:01:55]}  a6 {[%clk 0:02:26]} 19. a4 {[%clk 0:01:54]}  Bd5 {[%clk 0:02:03]} 20. Ba1 {[%clk 0:01:50]}  Rfe8 {[%clk 0:02:02]} 21. b5 {[%clk 0:01:50]}  axb5 {[%clk 0:02:02]} 22. axb5 {[%clk 0:01:50]}  Bxe5 {[%clk 0:01:58]} 23. dxe5 {[%clk 0:01:51]}  Nd7 {[%clk 0:01:57]} 24. bxc6 {[%clk 0:01:40]}  bxc6 {[%clk 0:01:57]} 25. Rb7 {[%clk 0:01:40]}  Qxc5 {[%clk 0:01:44]} 26. Qd2 {[%clk 0:01:08]}  Qe7 {[%clk 0:01:25]} 27. Bh3 {[%clk 0:01:00]}  Nxe5 {[%clk 0:01:07]} 28. Rxe7 {[%clk 0:00:57]}  Nf3+ {[%clk 0:01:07]} 29. Kh1 {[%clk 0:00:56]}  Nxd2 {[%clk 0:01:04]} 30. Rxg7+ {[%clk 0:00:55]}  Kf8 {[%clk 0:01:04]} 31. Re3 {[%clk 0:00:46]}  Nc4 {[%clk 0:01:03]} 32. Bxf5 {[%clk 0:00:45]}  Nxe3 {[%clk 0:01:01]} 33. fxe3 {[%clk 0:00:46]}  Re7 {[%clk 0:01:00]} 34. Rg5 {[%clk 0:00:38]}  Rf7 {[%clk 0:00:56]} 35. Bd4 {[%clk 0:00:36]}  Ke7 {[%clk 0:00:52]} 36. g4 {[%clk 0:00:34]}  Rb8 {[%clk 0:00:43]} 37. Rh5 {[%clk 0:00:33]}  Rb1+ {[%clk 0:00:38]} 38. Kg2 {[%clk 0:00:33]}  Rc1 {[%clk 0:00:36]} 39. Rh6 {[%clk 0:00:30]}  c5 {[%clk 0:00:34]} 40. Be5 {[%clk 0:00:31]}  Rc2+ {[%clk 0:00:32]} 41. Kg3 {[%clk 0:00:30]}  Rc1 {[%clk 0:00:32]} 42. Ra6 {[%clk 0:00:24]}  Rg1+ {[%clk 0:00:26]} 43. Kh4 {[%clk 0:00:25]}  c4 {[%clk 0:00:22]} 44. Bd6+ {[%clk 0:00:23]}  Kf6 {[%clk 0:00:21]} 45. Bf8+ {[%clk 0:00:14]}  Ke5 {[%clk 0:00:21]} 46. Bc5 {[%clk 0:00:14]}  Rd1 {[%clk 0:00:16]} 47. Kg5 {[%clk 0:00:12]}  Rxf5+ {[%clk 0:00:16]} 48. gxf5 {[%clk 0:00:12]}  Rg1+ {[%clk 0:00:17]} 49. Kh4 {[%clk 0:00:12]}  Kxf5 {[%clk 0:00:17]} 50. Bd4 {[%clk 0:00:13]}  Rg4+ {[%clk 0:00:17]} 51. Kh5 {[%clk 0:00:13]}  Rg6 {[%clk 0:00:18]} 52. Ra5 {[%clk 0:00:12]}  Ke6 {[%clk 0:00:17]} 53. Ra6+ {[%clk 0:00:12]}  Kf5 {[%clk 0:00:17]} 54. Ra5 {[%clk 0:00:12]}  Ke6 {[%clk 0:00:17]} 55. Ra7 {[%clk 0:00:13]}  Kf5 {[%clk 0:00:18]} 56. Rxh7 {[%clk 0:00:12]}  Rg2 {[%clk 0:00:17]} 57. h4 {[%clk 0:00:12]}  Be6 {[%clk 0:00:17]} 58. Ra7 {[%clk 0:00:11]}  Rg8 {[%clk 0:00:16]} 59. Ra5+ {[%clk 0:00:11]}  Bd5 {[%clk 0:00:15]} 60. Rxd5+ {[%clk 0:00:12]}  Ke6 {[%clk 0:00:16]} 61. Rc5 {[%clk 0:00:11]}  Rc8 {[%clk 0:00:15]} 62. Rxc8 {[%clk 0:00:11]}  Kd5 {[%clk 0:00:09]} 63. Rc5+ {[%clk 0:00:10]}  Kd6 {[%clk 0:00:05]} 64. Rxc4 {[%clk 0:00:11]} 1-0


[Site "https://www.chess.com"]